Cogmind - Beta 14 @@@ ROGUE MODE // 2025.03.31 @ 14:28:37 Player: Arc Result: Destroyed by G-34 Mercenary with Small Laser Performance ------------- Evolutions (0) 0 Regions Visited (2) 400 Robots Destroyed (29) 145 Value Destroyed (632) 632 Prototype IDs (2) 40 Alien Tech Used (0) 0 Bonus (0) 0 TOTAL SCORE: 1217 Bonus ------- None Cogmind --------- Core Integrity 0/250 Matter 288/300 Energy 249/250 System Corruption 0% Temperature Cool (72) Movement Treading (240) Ox1 Location -10/Mines Parts ------- > --- POWER (1) -------- Ion Engine > --- PROPULSION (2) --- Light Treads Light Treads > --- UTILITY (2) ------ High-capacity Storage Unit Signal Interpreter > --- WEAPON (2) ------- Medium Laser Assault Rifle > --- INVENTORY (20) --- Light Ion Engine Aluminum Leg Wheel Hover Unit Improved Heat Sink Small Storage Unit Seismic Detector Medium Laser Grenade Launcher Grenade Launcher Peak State ------------ > --- POWER ------------ Light Ion Engine > --- PROPULSION ------- Wheel Compact Wheel > --- UTILITY ---------- High-capacity Storage Unit Signal Interpreter > --- WEAPON ----------- Medium Laser Grenade Launcher > --- INVENTORY -------- Ion Engine Light Treads Light Treads Aluminum Leg Hover Unit Small Storage Unit Seismic Detector Medium Laser Assault Rifle Grenade Launcher [Rating: 8] Favorites ----------- Power Light Ion Engine Engine Light Ion Engine Propulsion Light Treads Treads Light Treads Wheel Wheel Utility Small Storage Unit Device Seismic Detector Storage Small Storage Unit Processor Signal Interpreter Weapon Medium Laser Energy Gun Medium Laser Ballistic Gun Light Assault Rifle Launcher Grenade Launcher Build | -11 -10 -10 ------- Run | Yrd Mat Min Slots Evolved . | . . . Power . | . . . Propulsion . | . . . Utility . | . . . Weapon . | . . . Parts Attached 29 | 7 15 7 Power 3 | 1 1 1 Engine 3 | 1 1 1 Core . | . . . Reactor . | . . . Propulsion 9 | 2 5 2 Treads 4 | . 2 2 Leg . | . . . Wheel 5 | 2 3 . Hover . | . . . Flight . | . . . Utility 4 | 2 2 . Device 1 | 1 . . Storage 2 | 1 1 . Processor 1 | . 1 . Hackware . | . . . Protection . | . . . Artifact . | . . . Weapon 13 | 2 7 4 Energy Gun 4 | 1 3 . Energy Cannon . | . . . Ballistic Gun 4 | 1 1 2 Ballistic Cannon . | . . . Launcher 5 | . 3 2 Special Weapon . | . . . Impact Weapon . | . . . Slashing Weapon . | . . . Piercing Weapon . | . . . Special Melee Weapon . | . . . Unidentified Prototypes . | . . . Parts Lost 5 | . 3 2 Power 2 | . 1 1 Propulsion 2 | . 1 1 Utility . | . . . Weapon 1 | . 1 . Highest Loss Streak 2 | . 1 2 To Critical Strikes . | . . . Average Slot Usage (%) 98 | . 99 98 Engine 13 | . 13 12 Treads 10 | . 10 10 Wheel 17 | . 17 17 Device 9 | . 11 . Storage 14 | . 14 14 Processor 4 | . 2 14 Energy Gun 13 | . 12 18 Ballistic Gun 7 | . 7 7 Launcher 6 | . 7 1 Peak Build Rating 8 | 7 8 8 Average Rating 7 | 4 7 7 On Entrance 5 | . 7 8 Naked Turns . | . . . Heaviest Build 49 | 14 48 49 Greatest Support 40 | 26 40 40 Greatest Overweight (x) 2 | 1 2 2 Average Overweight (x) . | . . 1 Largest Inventory Capacity 20 | 8 20 20 Average Capacity 12 | 7 10 20 Most Carried 11 | 8 11 11 Average Carried 8 | 5 7 10 Final Capacity 20 | 8 20 20 Final Carried 10 | 6 10 10 Class Distribution -------------------- 100% | Mutant Dominant Class ---------------- Mutant | -10/Materials Mutant | -10/Mines Resources | -11 -10 -10 ----------- Run | Yrd Mat Min Matter Collected 580 | 271 212 97 Remotely . | . . . Salvage Created 681 | 23 491 167 Parts 45 | 3 32 10 Haulers Intercepted . | . . . Recyclers Shooed . | . . . Parts Field Recycled . | . . . Retrieved Matter . | . . . Parts Self-Destructed . | . . . Prevented . | . . . Kills | -11 -10 -10 ------- Run | Yrd Mat Min Combat Hostiles Destroyed 23 | . 17 6 Guns 17 | . 13 4 AOE 5 | . 4 1 Classes Destroyed 7 | 1 4 2 Worker 1 | . . 1 Builder 1 | . . 1 Tunneler 2 | 1 . 1 Watcher 2 | . 2 . Swarmer 11 | . 8 3 Grunt 11 | . 8 3 Subdweller 1 | . 1 . Best Kill Streak 6 | 1 6 4 Combat Bots Only 6 | . 6 3 Max Kills in Single Turn 2 | 1 2 2 Gunslinging 1 | . . 1 Exploded 2 | . 2 1 Melee . | . . . Uniques/NPCs Destroyed . | . . . Combat | -11 -10 -10 -------- Run | Yrd Mat Min Hostile Shots Fired 131 | . 91 40 Missed 33 | . 26 7 Damage Taken 970 | . 633 337 Core 251 | . 160 91 Absorbed by Shields . | . . . Core Remaining (%) 100 | 100 . . Volleys Fired 64 | 2 44 18 Largest 2 | 2 2 2 Hottest 100 | 60 100 80 Shots Fired 115 | 4 83 28 Gun 109 | 4 79 26 Cannon . | . . . Launcher 6 | . 4 2 Special . | . . . Kinetic 47 | 2 37 8 Thermal 53 | . 35 18 Explosive 6 | . 4 2 Electromagnetic 9 | 2 7 . Robot Hit Streak 8 | 4 8 7 Robot Miss Streak 3 | . 2 3 Penetration Max . | . . . Secondary Targets 3 | . 2 1 Max Gunslinging Chain 1 | . 1 1 Shots Hit Robots 69 | 4 48 17 Core Hits 48 | 1 32 15 Critical Kills . | . . . Critical Parts Destroyed . | . . . Critical Strikes 6 | . 2 4 Burn 6 | . 2 4 Melee Attacks . | . . . Impact . | . . . Slashing . | . . . Piercing . | . . . Sneak Attacks . | . . . Combat Hostiles . | . . . Follow-up Attacks . | . . . Damage Inflicted 1227 | 49 709 469 Guns 736 | 49 526 161 Cannons . | . . . Explosions 459 | . 183 276 Melee . | . . . Ramming 32 | . . 32 Kinetic 277 | 19 197 61 Thermal 483 | . 285 198 Explosive 333 | . 155 178 Electromagnetic 102 | 30 72 . Impact . | . . . Slashing . | . . . Piercing . | . . . Highest Corruption . | . . . Average Corruption . | . . . Corruption Purged . | . . . Corruption Blocked . | . . . Overload Shots . | . . . Overflow Damage 10 | . . 10 Projectiles . | . . . Explosions . | . . . Melee 10 | . . 10 Knockbacks . | . . . Impact . | . . . Kinetic . | . . . Secondary . | . . . Self-Inflicted Damage 16 | . . 16 Shots . | . . . Rammed 1 | . . 1 Targets Rammed 1 | . . 1 Kicked . | . . . Crushed . | . . . Highest Temperature 118 | 20 118 66 Average Temperature 31 | 15 35 19 Received Heat Transfer 303 | . 186 117 Siege Activations . | . . . Robots Corrupted 1 | . . 1 Combat Hostiles . | . . . Parts Fried 3 | . 1 2 Impact Corruptions 1 | . . 1 Robots Melted 1 | . . 1 Combat Hostiles 1 | . . 1 Parts Melted 4 | . 2 2 Heat Transferred 1691 | . 999 692 Parts Sabotaged . | . . . Parts Stolen . | . . . Parts Stripped . | . . . Power Chain Reactions . | . . . Alert | -11 -10 -10 ------- Run | Yrd Mat Min Peak Influence 287 | 5 287 276 Initial 73 | . 3 73 Average 123 | 1 120 168 Maximum Alert Level 1 | . 1 1 Low Security (%) 81 | 100 86 55 Level 1 18 | . 13 44 Level 2 . | . . . Level 3 . | . . . Level 4 . | . . . Level 5 . | . . . High Security . | . . . Max Security . | . . . Squads Dispatched 3 | . 2 1 Investigation 1 | . . 1 Extermination . | . . . Reinforcement 2 | . 2 . Assault . | . . . Garrison . | . . . Intercept . | . . . Searches Triggered . | . . . Construction Impeded . | . . . Haulers Reinforced . | . . . Active Scanning Responses . | . . . Cargo Convoy Interrupts . | . . . Stealth | -11 -10 -10 --------- Run | Yrd Mat Min Distress Signals 2 | . 2 . Communications Jammed . | . . . Distress Signals . | . . . Times Spotted 32 | . 24 8 Peak Tracking Total 5 | . 5 3 Tactical Retreats 1 | . 1 . Traps | -11 -10 -10 ------- Run | Yrd Mat Min Traps Triggered 1 | . 1 . Indirectly . | . . . Trap Hack Attempts . | . . . Triggered . | . . . Disarmed . | . . . Reprogrammed . | . . . Reused . | . . . Traps Extracted . | . . . Installed . | . . . Triggered . | . . . Machines | -11 -10 -10 ---------- Run | Yrd Mat Min Machines Disabled 3 | . 1 2 Max in Single Turn 1 | . 1 1 Machines Repaired . | . . . Machines Dismantled . | . . . Machines Sabotaged . | . . . Overloaded Fab Kills . | . . . Hacking | -11 -10 -10 --------- Run | Yrd Mat Min Machines Accessed 7 | . 6 1 Terminals 7 | . 6 1 Fabricators . | . . . Repair Stations . | . . . Recycling Units . | . . . Scanalyzers . | . . . Garrison Access . | . . . Total Hacks 18 | . 15 3 Successful 10 | . 9 1 Failed 8 | . 6 2 Catastrophic 1 | . 1 . Database Lockouts . | . . . Manual . | . . . Terminals 18 | . 15 3 Fabricators . | . . . Repair Stations . | . . . Recycling Units . | . . . Scanalyzers . | . . . Garrison Access . | . . . Terminal Hacks 10 | . 9 1 Record 1 | . 1 . Prototype ID Bank 1 | . 1 . Alert Level 1 | . 1 . Locate Traps 2 | . 2 . Dispatch Records 1 | . 1 . Patrol Status 1 | . 1 . Investigation Status 1 | . 1 . Registered Prototypes 1 | . 1 . Zone Layout 1 | . . 1 Fabricator Hacks . | . . . Repair Station Hacks . | . . . Recycling Unit Hacks . | . . . Scanalyzer . | . . . Garrison Access Hacks . | . . . Unauthorized Hacks . | . . . Terminals . | . . . Fabricators . | . . . Repair Stations . | . . . Recycling Units . | . . . Scanalyzers . | . . . Garrison Access . | . . . Data Cores Recovered . | . . . Used . | . . . Hacking Detections 5 | . 4 1 Full Trace Events 3 | . 2 1 Feedback Events . | . . . Feedback Blocked . | . . . Robot Schematics Acquired . | . . . Robots Built . | . . . Authchips . | . . . Time . | . . . Total Robot Build Rating . | . . . Part Schematics Acquired . | . . . Parts Built . | . . . Authchips . | . . . Time . | . . . Total Part Build Rating . | . . . Parts Repaired . | . . . Time . | . . . Parts Recycled . | . . . Recycled Matter . | . . . Retrieved Matter . | . . . Retrieved Components . | . . . Parts Scanalyzed . | . . . Part Schematics Acquired . | . . . Parts Damaged . | . . . Bothacking | -11 -10 -10 ------------ Run | Yrd Mat Min Used RIF Installer . | . . . Robots Hacked . | . . . Non-combat . | . . . Combat . | . . . Robot Hacks Applied . | . . . Relay Couplers Released . | . . . Fabnet Peak Effective % . | . . . Robots Rewired . | . . . Allies Hacked . | . . . Hacks Repelled . | . . . Allies | -11 -10 -10 -------- Run | Yrd Mat Min Total Allies . | . . . Largest Group . | . . . Highest-Rated Group . | . . . Highest-Rated Ally . | . . . Total Orders . | . . . Ally Attacks . | . . . Total Damage . | . . . Kills . | . . . Allies Corrupted . | . . . Allies Melted . | . . . Intel | -11 -10 -10 ------- Run | Yrd Mat Min Robot Analysis Total . | . . . Derelict Logs Recovered . | . . . Drone Launches . | . . . Drone Recoveries . | . . . Exploration | -11 -10 -10 ------------- Run | Yrd Mat Min Turns Passed 1546 | 82 1163 301 Spaces Moved 1106 | 62 867 177 Core 15 | 15 . . Treads 283 | . 242 41 Legs . | . . . Wheels 808 | 47 625 136 Hover . | . . . Flight . | . . . Fastest Speed 50 | 50 90 105 Average Speed 115 | 90 113 137 Slowest Speed 320 | 100 160 320 Overloaded Moves . | . . . Propulsion Burnouts . | . . . Robots Hopped . | . . . Cave-ins Triggered . | . . . Exploration Rate (%) 44 | 4 95 34 Regions Visited 2 Branch Regions 1 Pre-discovered Areas . | . . . Known Exits Taken 1 | . 1 . Unknown Exits Taken 1 | 1 . . Scrap Searched . | . . . Spaces Dug 7 | . 7 . Terrain Destroyed 51 | . 28 23 Melee . | . . . Projectile . | . . . AOE 51 | . 28 23 Terrain Rammed . | . . . Walls Destroyed . | . . . Machines Disabled . | . . . Actions | -11 -10 -10 --------- Run | Yrd Mat Min Total 1258 | 83 970 205 Wait 26 | . 26 . Move 1104 | 61 866 177 Hop . | . . . Pick Up 29 | 13 14 2 Fast Attach . | . . . Attach 14 | 7 5 2 Detach . | . . . Swap 15 | . 10 5 Drop 5 | . 5 . Fire 64 | 2 44 18 Melee . | . . . Ram 1 | . . 1 Kick . | . . . Crush . | . . . Escape Stasis . | . . . Rewire . | . . . Trap . | . . . Miscellaneous . | . . . Route ------- -11/Scrapyard -10/Materials (discovered 6 exits: *Mat x3 / *Min x2 / *Sub) -10/Mines (discovered 1 exit: Mat) History --------- Turn | Location | Event 15 | -11/Scrapyard | Discovered new exit (range 15) 83 | -11/Scrapyard | Entered Materials 122 | -10/Materials | Discovered new exit (range 15) 157 | -10/Materials | Discovered new exit (range 9) 300 | -10/Materials | Build established: Mutant 543 | -10/Materials | Discovered new exit (range 4) 779 | -10/Materials | Discovered new exit (range 15) 909 | -10/Materials | Discovered new exit (range 12) 965 | -10/Materials | Discovered new exit (range 16) 1042 | -10/Materials | Identified exit to Materials 1083 | -10/Materials | Derelicts attacked the area 1087 | -10/Materials | Core integrity fell below 50% 1217 | -10/Materials | Identified exit to Subcaves 1235 | -10/Materials | Identified exit to Mines 1246 | -10/Materials | Entered Mines 1278 | -10/Mines | Met a Derelict bent on vengeance 1425 | -10/Mines | Core integrity fell below 20% 1505 | -10/Mines | Discovered exit to Materials (range 9) 1547 | -10/Mines | Destroyed by G-34 Mercenary with Small Laser Last Messages --------------- G-34 Mercenary suffers critical hit (Burn). G-34 Mercenary destroyed. Acquired 24 matter. Acquired Imp. Heat Sink. Acquired 26 matter. Connecting with Terminal... EXIT=FOUND: MATERIALS >>Layout(Zone) Retrieving Zone 3Z layout... Downloaded map data. ALERT: Suspicious activity at Terminal M002. Dispatching Investigation squad. U-05 Engineer lays Concrete. G-34 Mercenary suffers critical hit (Burn). U-05 Engineer lays Concrete. G-34 Mercenary suffers critical hit (Burn). U-05 Engineer lays Concrete. G-34 Mercenary heat damages core (-3). Aluminum Leg melted. U-05 Engineer lays Concrete. Map ----- +----------------------------------------------------+ | ??????????????????????????????????## ##????? | | ???????????????????????????????????# #?????? | | ???????????????????????????????????# #?????? | | ???????????????????????????????????# #?????? | | ???????????????????????????????????# #?????? | | ???????????????????????????????????# #?????? | | ???????????????????????????????????# #?????? | | ???????????????????????????????????# #?????? | | ???????????????????????????????????# #?????? | | ???????????????????????????????????# #?????? | | ???????????????????????????????????# #?????? | | ???????????????#???????????????????# #?????? | | ???????????????# ??????????????????# #?????? | | ???????????????# #?????????????????# #?????? | | ???????????????# #?????????????????# #?????? | | ???????????????# ##????????????????# ####??? | | ??????????????## ######???????????# #??? | | ?????????????## ## ##??????????#### #??? | | ????########## ##????????????# #??? | | ????# g #????????????# #### | | ????# """ #????????????# | | ????# ## """ ##????????????#### # | | ????# ### """ ##%#####????????????????# # | | ????# #?## ### ##########???????????# # | | ???## ##### ###?# #???????##### # | | ???# #########@######## ######### ## # | | ???# #???# #????# % | | ???# #??## #????########## ### | | ???# < #??#T ##????????????## #? | | ???# #??#; u ;#?????????????## # | | ???# #??## ##??????????????## | | ???# """ #??#; % ;#???????????????# | | ???# """ #??# [ ;#???????????????## # | | ???# """ #??# ##?????????????????### | | ???# #??##;;;;;;;#????????????????????? | | ???########???#########????????????????????? | | ???????????????????????????????????????????? | | ???????????????????????????????????????????? | | | | | | | | | | | | | | | | | | | | | | | | | +----------------------------------------------------+ Best States ------------- Heat Dissipation 25 Energy Generation 10 Energy Capacity 250 Matter Stores 300 Matter Capacity 300 Sight Range 16 Terrain Scan Density 10 Evasion (%) 42 Recoil Reduction 2 Item Schematics ----------------- None Robot Schematics ------------------ None Fabricated ------------ Nothing Alien Tech Used ----------------- None Achievements -------------- None Challenges ------------ None Game ------ Seed LinearAblativeExoskeleton Manual? 0 Play Time 00:20:55 Cumulative 13.6 hours Start 2025.03.31 @ 14:06:52 End 2025.03.31 @ 14:28:37 Sessions 1 Manual Loads 0 Difficulty Rogue Special Mode None Game No. 19 Rogue 19 Adventurer 0 Explorer 0 Win Type - Total 0 Types 0/0/0/0/0/0/0/0/0 Lore% 8 Gallery% 14 Achievement% 15 Wizard Run 0 Options --------- Layout 1 ASCII 0 Keyboard 0 Movement Numpad Keybinds 0 Fullscreen 1 Font 16/SmallcapsGlow Map View 55x38 Zoom Use 0% Tactical HUD 0 Map Filters NONE Filters NONE Steam 1 RUN: e6ad2064-73c2-4d8e-a2f6-65b111149071